{"text_format":"1","workbook":"xlsx","n_sheets":13,"sheets":["Order form cover page","1 Profile specification","2 Support studs","3 Vertical joint flashings","3 Flashings c","4 External corner flashings","5 Internal corner flashings","6 Other flashings","7 Screws and other acc.","8 Flat sheets","8 Flat sheets c","Translation","Data"],"not_rendered":{"charts":0,"images":42,"macros":1,"external_links":0,"defined_names":30,"comments":0,"pivot_tables":0},"unopened":[],"bounds":{"document_bytes":16777216,"sheet_cells":100000,"rows_first":2000,"rows_last":500,"rows_between":2000,"halvings":0,"cell_chars":16384,"cell_head_chars":4096},"cells_cut":0,"cells_raw":0,"read":"whole","date_system":"1900"}

{"sheet":"Order form cover page","index":0,"n_rows":41,"n_cols":17,"rows_kept":41,"cut":false,"hidden":false,"merged":[[29,5,29,8],[30,5,30,8],[27,9,27,12],[29,9,29,12],[31,9,31,12],[33,9,33,12],[28,6,28,7],[0,10,0,12],[0,13,0,14],[6,12,6,14],[18,10,18,14],[23,11,23,14],[24,5,24,8],[24,11,24,14],[3,0,3,1],[3,2,3,6],[3,10,3,14],[5,0,5,4],[5,5,5,9],[5,10,5,14],[0,0,2,3],[0,4,0,6],[4,0,4,1],[4,2,4,14],[0,8,0,9],[1,10,2,12],[1,13,2,14],[3,7,3,9],[2,8,2,9],[1,8,1,9],[1,4,2,7],[13,1,13,4],[13,6,13,9],[13,11,13,14],[14,1,14,4],[14,6,14,9],[14,11,14,14],[11,1,11,4],[11,6,11,9],[11,11,11,14],[12,1,12,4],[12,6,12,9],[12,11,12,14],[6,0,6,1],[6,2,6,4],[6,5,6,6],[6,7,6,9],[9,0,11,0],[9,5,11,5],[9,10,11,10],[7,0,8,0],[6,10,6,11],[7,1,7,4],[7,5,8,5],[9,1,9,4],[9,6,9,9],[9,11,9,14],[10,1,10,4],[10,6,10,9],[10,11,10,14],[7,6,7,9],[7,10,8,10],[7,11,7,14],[8,1,8,4],[8,6,8,9],[8,11,8,14],[19,0,20,2],[19,4,19,7],[19,8,20,9],[19,11,19,14],[20,4,20,7],[20,11,20,14],[15,0,15,2],[15,10,15,14],[16,0,16,2],[16,3,16,9],[16,10,16,14],[17,0,17,2],[17,3,17,14],[18,0,18,2],[18,3,18,7],[18,8,18,9],[21,0,21,1],[21,7,21,8],[21,9,21,10],[21,11,21,13],[22,0,22,1],[22,2,22,4],[22,6,22,9],[22,11,22,13],[40,0,41,1],[40,2,40,14],[41,2,41,14],[25,0,25,14],[35,1,35,4],[33,1,33,4],[37,0,38,4],[37,5,38,9],[37,10,38,10],[37,11,38,11],[27,1,27,4],[29,1,29,4],[31,1,31,4],[23,0,23,1],[23,5,23,8],[23,9,23,10]]}
[null,null,null,null,"DESIGN PROFILE",null,null,"Select","product",null,"Ruukki SAP order no.",null,null,"Date"]
[null,null,null,null,"ORDER FORM",null,null,null,"Language",null,null,null,null,null,null,null,"v2.2.2"]
[null,null,null,null,null,null,null,null,"English"]
["Send to:",null,"cladding.ee@ruukki.com",null,null,null,null," ",null,null,"Italic underlined = mandatory information"]
["BUYER"]
["SHIP-TO PARTY (DELIVERY ADDRESS)",null,null,null,null,"BUYER",null,null,null,null,"BILL-TO PARTY (INVOICING CUSTOMER)"]
["Customer no.",null,null,null,null,"Customer no.",null,null,null,null,"Customer no."]
["Name",null,null,null,null,"Name",null,null,null,null,"Name"]
[]
["Address",null,null,null,null,"Address",null,null,null,null,"Address"]
[]
[null,null,null,null,null,null,null,null,null,null,null,null,null,null,null,null,"change log:"]
["Person",null,null,null,null,"Person",null,null,null,null,"Person",null,null,null,null,null,"v2.0.1 - finalised translations"]
["Tel.",null,null,null,null,"Tel.",null,null,null,null,"Tel.",null,null,null,null,null,"v2.0.2 - added form update pop-up"]
["email",null,null,null,null,"email",null,null,null,null,"email",null,null,null,null,null,"v2.0.3 - fixed corten S7 sheet issues"]
["ORDER INFORMATION",null,null,null,null,null,null,null,null,null,"Short project name (3-10 characters)",null,null,null,null,null,"v2.0.4 - simplified function toode"]
["PO no./ project",null,null,null,null,null,null,null,null,null,null,null,null,null,null,null,"v2.0.5 - fixed S7 thickness"]
["Ruukki Sales ja CST person",null,null,null,null,null,null,null,null,null,null,null,null,null,null,null,"v2.1 - added gloss level option"]
["Wholesaler order nr",null,null,null,null,null,null,null,"Billing fee",null,null,null,null,null,null,null,"- changed sheet buttons"]
["Extra order",null,null,"No",null,null,null,null,"Project-specific material ordered",null,"No",null,null,null,null,null,"- added export button"]
[null,null,null,null,null,null,null,null,null,null,null,null,null,null,null,null,"v2.1.1 - fixed non ct studs names"]
["TERMS",null,null,null,null,null,null,null,null,null,null,null,null,null,null,null,"v2.1.2 - fixed area calculation"]
["Delivery term",null,"Other",null,null,null,"_______________________",null,null,null,null,null,null,null,null,null,"v2.2 - added Design Cor-Ten"]
["Extra charges",null,"No",null,null,null,null,null,null,null,null,null,null,null,null,null,"- added DateSAP code"]
[null,null,null,null,null,null,null,null,null,null,null,null,null,null,null,null,"- updated availabale products"]
["ATTACHED PRIMO AND ACCESSORY SPECIFICATIONS",null,null,null,null,null,null,null,null,null,null,null,null,null,null,null,"- new translator code"]
[null,null,null,null,null,null,null,null,null,null,null,null,null,null,null,null,"v2.2.1 - replaced a screw"]
[null,"1 Profile specification",null,null,null,null,null,null,null,"5 Internal corner flashings",null,null,null,null,null,null,"v2.2.2 - fixed translation issue"]
[null,null,null,null,null,null,"▲▲▲"]
[null,"2 Support studs",null,null,null,"Product not selected!",null,null,null,"6 Other flashings"]
[null,null,null,null,null,"Choose product to continue!"]
[null,"3 Vertical joint flashings",null,null,null,null,null,null,null,"7 Screws and other acc."]
[]
[null,"4 External corner flashings",null,null,null,null,null,null,null,"8 Flat sheets"]
[]
[]
[]
["Always attach separate product-specific drawing from ruukki.com when required.",null,null,null,null,"Sepate product-specific drawings attached",null,null,null,null,"_____","pcs"]
[]
[]
["NOTE"]

{"sheet":"1 Profile specification","index":1,"n_rows":55,"n_cols":23,"rows_kept":55,"cut":false,"hidden":true,"merged":[[51,4,51,6],[42,4,42,6],[43,4,43,6],[44,4,44,6],[45,4,45,6],[46,4,46,6],[48,4,48,6],[49,4,49,6],[50,4,50,6],[47,4,47,6],[3,0,3,14],[9,0,9,1],[9,2,9,6],[4,0,6,7],[0,8,0,9],[1,4,2,10],[0,0,2,3],[0,4,0,6],[0,11,0,12],[1,11,2,12],[9,11,9,12],[7,0,7,12],[4,8,5,9],[4,11,5,12],[10,0,10,1],[10,2,10,6],[11,2,11,6],[11,0,11,1],[8,8,8,9],[9,8,9,9],[8,11,8,12],[8,0,8,1],[8,2,8,6],[10,10,11,12],[10,7,10,9],[11,7,11,9],[12,11,12,12],[14,0,14,12],[15,7,15,12],[15,4,15,6],[16,4,16,6],[17,4,17,6],[18,4,18,6],[19,4,19,6],[20,4,20,6],[12,0,12,1],[13,0,13,1],[12,2,12,3],[12,4,12,6],[13,2,13,3],[13,4,13,6],[13,11,13,12],[12,7,12,8],[13,7,13,8],[12,9,12,10],[13,9,13,10],[16,7,16,12],[17,7,17,12],[18,7,18,12],[19,7,19,12],[20,7,20,12],[21,7,21,12],[22,7,22,12],[23,7,23,12],[24,7,24,12],[31,7,31,12],[32,7,32,12],[33,7,33,12],[33,4,33,6],[34,4,34,6],[35,4,35,6],[31,4,31,6],[32,4,32,6],[21,4,21,6],[22,4,22,6],[23,4,23,6],[24,4,24,6],[25,7,25,12],[26,7,26,12],[27,7,27,12],[25,4,25,6],[26,4,26,6],[27,4,27,6],[28,4,28,6],[29,4,29,6],[30,4,30,6],[28,7,28,12],[29,7,29,12],[30,7,30,12],[34,7,34,12],[35,7,35,12],[52,4,52,6],[52,7,52,12],[36,7,36,12],[37,7,37,12],[38,7,38,12],[39,7,39,12],[47,7,47,12],[46,7,46,12],[48,7,48,12],[49,7,49,12],[50,7,50,12],[51,7,51,12],[40,7,40,12],[41,7,41,12],[42,7,42,12],[43,7,43,12],[44,7,44,12],[45,7,45,12],[36,4,36,6],[37,4,37,6],[38,4,38,6],[39,4,39,6],[40,4,40,6],[41,4,41,6]]}
[null,null,null,null,"DESIGN PROFILE",null,null,"Select","product",null,null,"Date"]
[null,null,null,null,"Profile specification"]
[]
[]
[null,null,null,null,null,null,null,null,"Sheet width",null,null,"Effective width"]
[]
[null,null,null,null,null,null,null,null,1250,"mm","--->",null,"mm"]
[]
["Ruukki SAP order no.",null,null,null,null,null,null,"Material","Select option"]
["PO no./ project"]
["Main order",null,null,null,null,null,null,"Perforation options"]
[null,null,null,null,null,null,null,"No perforation"]
[null,null,null,null,null,null,null,"Depth C (mm)",null,"Price €/m²",null,"Length (mm)"]
[]
[]
["ITEM","Length","Amount ","Part ID","NOTE",null,null,null,null,null,null,null,null,"m² / pc","Total"]
[1,7000,50,null,null,null,null,null,null,null,null,null,null,{"$f":"$L$7*B17/10^6","v":0},{"$f":"N17*C17","v":0}]
[2,null,null,null,null,null,null,null,null,null,null,null,null,{"$f":"$L$7*B18/10^6","v":0},{"$f":"N18*C18","v":0}]
[3,null,null,null,null,null,null,null,null,null,null,null,null,0,0]
[4,null,null,null,null,null,null,null,null,null,null,null,null,0,0,null,null,null,null,null,null,null," "]
[5,null,null,null,null,null,null,null,null,null,null,null,null,0,0]
[6,null,null,null,null,null,null,null,null,null,null,null,null,0,0]
[7,null,null,null,null,null,null,null,null,null,null,null,null,0,0]
[8,null,null,null,null,null,null,null,null,null,null,null,null,0,0]
[9,null,null,null,null,null,null,null,null,null,null,null,null,0,0]
[10,null,null,null,null,null,null,null,null,null,null,null,null,0,0]
[11,null,null,null,null,null,null,null,null,null,null,null,null,0,0]
[12,null,null,null,null,null,null,null,null,null,null,null,null,0,0]
[13,null,null,null,null,null,null,null,null,null,null,null,null,0,0]
[14,null,null,null,null,null,null,null,null,null,null,null,null,0,0]
[15,null,null,null,null,null,null,null,null,null,null,null,null,0,0]
[16,null,null,null,null,null,null,null,null,null,null,null,null,0,0]
[17,null,null,null,null,null,null,null,null,null,null,null,null,0,0]
[18,null,null,null,null,null,null,null,null,null,null,null,null,0,0]
[19,null,null,null,null,null,null,null,null,null,null,null,null,0,0]
[20,null,null,null,null,null,null,null,null,null,null,null,null,0,0]
[21,null,null,null,null,null,null,null,null,null,null,null,null,0,0]
[22,null,null,null,null,null,null,null,null,null,null,null,null,0,0]
[23,null,null,null,null,null,null,null,null,null,null,null,null,0,0]
[24,null,null,null,null,null,null,null,null,null,null,null,null,0,0]
[25,null,null,null,null,null,null,null,null,null,null,null,null,0,0]
[26,null,null,null,null,null,null,null,null,null,null,null,null,0,0]
[27,null,null,null,null,null,null,null,null,null,null,null,null,0,0]
[28,null,null,null,null,null,null,null,null,null,null,null,null,0,0]
[29,null,null,null,null,null,null,null,null,null,null,null,null,0,0]
[30,null,null,null,null,null,null,null,null,null,null,null,null,0,0]
[31,null,null,null,null,null,null,null,null,null,null,null,null,0,0]
[32,null,null,null,null,null,null,null,null,null,null,null,null,0,{"$f":"N48*C48","v":0}]
[33,null,null,null,null,null,null,null,null,null,null,null,null,0,0]
[34,null,null,null,null,null,null,null,null,null,null,null,null,0,0]
[35,null,null,null,null,null,null,null,null,null,null,null,null,0,0]
[36,null,null,null,null,null,null,null,null,null,null,null,null,0,0]
[37,null,null,null,null,null,null,null,null,null,null,null,null,0,0]
[]
[null,null,null,null,null,null,null,null,null,null,null,null,null,null,{"$f":"SUM(O17:O53)","v":0}]

{"sheet":"2 Support studs","index":2,"n_rows":52,"n_cols":14,"rows_kept":52,"cut":false,"hidden":true,"merged":[[3,0,3,13],[0,0,2,3],[0,4,0,6],[0,8,0,9],[1,4,2,10],[1,11,2,13],[0,11,0,13],[4,0,4,2],[4,3,4,6],[4,7,4,8],[5,0,5,12],[4,9,4,13],[6,0,6,2],[6,3,6,4],[7,0,15,4],[19,0,20,0],[19,1,20,6],[16,1,16,2],[17,1,17,2],[18,1,18,2],[16,3,16,4],[17,3,17,4],[18,3,18,4],[6,7,6,9],[6,10,6,11],[7,7,15,11],[19,7,20,7],[19,8,20,13],[16,10,16,11],[17,10,17,11],[18,10,18,11],[16,8,16,9],[17,8,17,9],[18,8,18,9],[22,0,22,2],[22,3,22,4],[22,7,22,9],[22,10,22,11],[23,0,31,4],[23,7,31,11],[35,0,36,0],[35,1,36,6],[35,7,36,7],[35,8,36,13],[32,1,32,2],[32,3,32,4],[32,8,32,9],[32,10,32,11],[33,1,33,2],[33,3,33,4],[33,8,33,9],[33,10,33,11],[51,0,52,0],[51,1,52,6],[51,7,52,7],[51,8,52,13],[48,1,48,2],[48,3,48,4],[48,8,48,9],[48,10,48,11],[49,1,49,2],[49,3,49,4],[49,8,49,9],[49,10,49,11],[21,0,21,13],[37,0,37,13],[50,1,50,2],[50,3,50,4],[50,8,50,9],[50,10,50,11],[38,0,38,2],[38,3,38,4],[38,7,38,9],[38,10,38,11],[39,0,47,4],[39,7,47,11],[34,1,34,2],[34,3,34,4],[34,8,34,9],[34,10,34,11]]}
[null,null,null,null,"DESIGN PROFILE",null,null,"Select","product",null,null,"Date"]
[null,null,null,null,"Accessory specification - Support studs"]
[]
[]
["Ruukki SAP order no.",null,null,null,null,null,null,"PO no./ project"]
[]
["Support stud",null,null,"CA1SS1",null,"Length","Amount ","Support stud",null,null,"CA1SS2",null,"Length","Amount "]
[null,null,null,null,null,"(mm)","pcs",null,null,null,null,null,"(mm)","pcs"]
[]
[]
[]
[]
[]
[]
[]
[]
["Material","Select option",null,null,null,null,null,"Material","Select option"]
[]
[]
["NOTE",null,null,null,null,null,null,"NOTE"]
[]
[]
["Support stud",null,null,"CA1RS1",null,"Length","Amount ","Support stud",null,null,"CA1SSC1",null,"Length","Amount "]
[null,null,null,null,null,"(mm)","pcs",null,null,null,null,null,"(mm)","pcs"]
[]
[]
[]
[]
[]
[]
[]
[]
["Material","Select option",null,null,null,null,null,"Material","Select option"]
[]
[]
["NOTE",null,null,null,null,null,null,"NOTE"]
[]
[]
["Support stud",null,null,null,null,"Length","Amount ","Other",null,null,null,null,"Length","Amount "]
[null,null,null,null,null,"(mm)","pcs",null,null,null,null,null,"(mm)","pcs"]
[]
[]
[]
[]
[]
[]
[]
[]
["Material","<Select option>",null,null,null,null,null,"Material","<Select option>"]
[]
[]
["NOTE",null,null,null,null,null,null,"NOTE"]

{"sheet":"3 Vertical joint flashings","index":3,"n_rows":61,"n_cols":13,"rows_kept":61,"cut":false,"hidden":true,"merged":[[5,0,5,12],[0,0,2,3],[0,4,0,6],[0,8,0,9],[0,11,0,13],[1,4,2,10],[1,11,2,13],[3,0,3,13],[4,0,4,2],[4,3,4,6],[4,7,4,8],[4,9,4,13],[9,10,9,11],[6,7,6,13],[7,12,7,13],[8,12,9,13],[7,10,7,11],[8,10,8,11],[16,0,16,6],[7,0,15,6],[6,0,6,3],[6,4,6,6],[7,8,7,9],[8,8,8,9],[9,8,9,9],[10,9,10,13],[11,9,11,13],[12,9,12,13],[13,9,13,13],[14,9,14,13],[15,9,15,13],[16,9,16,13],[37,9,37,13],[17,0,17,3],[17,4,17,6],[17,7,17,13],[18,0,26,6],[18,8,18,9],[18,10,18,11],[18,12,18,13],[19,8,19,9],[19,10,19,11],[19,12,20,13],[20,8,20,9],[20,10,20,11],[21,9,21,13],[22,9,22,13],[23,9,23,13],[24,9,24,13],[25,9,25,13],[26,9,26,13],[49,0,49,6],[50,0,50,3],[50,4,50,6],[50,7,50,13],[49,9,49,13],[27,0,27,6],[28,0,28,3],[28,4,28,6],[28,7,28,13],[29,0,37,6],[29,8,29,9],[29,10,29,11],[29,12,29,13],[30,8,30,9],[30,10,30,11],[30,12,31,13],[31,8,31,9],[31,10,31,11],[34,9,34,13],[35,9,35,13],[36,9,36,13],[27,9,27,13],[32,9,32,13],[33,9,33,13],[60,0,60,6],[51,0,59,6],[51,8,51,9],[51,10,51,11],[51,12,51,13],[52,8,52,9],[52,10,52,11],[52,12,53,13],[53,8,53,9],[53,10,53,11],[54,11,54,13],[55,11,55,13],[60,11,60,13],[56,11,56,13],[57,11,57,13],[58,11,58,13],[59,11,59,13],[38,0,38,6],[39,0,39,3],[39,4,39,6],[39,7,39,13],[40,0,48,6],[40,8,40,9],[40,10,40,11],[40,12,40,13],[41,8,41,9],[41,10,41,11],[41,12,42,13],[42,8,42,9],[42,10,42,11],[46,9,46,13],[38,9,38,13],[43,9,43,13],[44,9,44,13],[45,9,45,13],[47,9,47,13],[48,9,48,13]]}
[null,null,null,null,"DESIGN PROFILE",null,null,"Select","product",null,null,"Date"]
[null,null,null,null,"Accessory specification - Depth"]
[]
[]
["Ruukki SAP order no.",null,null,null,null,null,null,"PO no./ project"]
[]
["Vertical joint flashing",null,null,null,"CA1VJ1",null,null,"MATERIALS, COATINGS AND COLOURS"]
[null,null,null,null,null,null,null,"Material","<Select option>",null,null,null,"NOTE"]
[]
[]
[null,null,null,null,null,null,null,"Length","Amount "]
[]
[]
[]
[]
[]
["L = 150 - 3 050mm"]
["Vertical joint flashing",null,null,null,"CA1VJ2",null,null,"MATERIALS, COATINGS AND COLOURS"]
[null,null,null,null,null,null,null,"Material","<Select option>",null,null,null,"NOTE"]
[]
[]
[null,null,null,null,null,null,null,"Length","Amount "]
[]
[]
[]
[]
[]
["L = 150 - 3 050 mm"]
["Vertical joint flashing",null,null,null,"CA1VJ3",null,null,"MATERIALS, COATINGS AND COLOURS"]
[null,null,null,null,null,null,null,"Material","<Select option>",null,null,null,"NOTE"]
[]
[]
[null,null,null,null,null,null,null,"Length","Amount "]
[]
[]
[]
[]
[]
["L = 150 - 3 050 mm"]
["Vertical joint flashing",null,null,null,"CA1VJ4",null,null,"MATERIALS, COATINGS AND COLOURS"]
[null,null,null,null,null,null,null,"Material","<Select option>",null,null,null,"NOTE"]
[]
[]
[null,null,null,null,null,null,null,"Length","Amount "]
[]
[]
[]
[]
[]
["L = 150 - 4 000 mm"]
["Vertical joint flashing",null,null,null,"CA1VJ7X",null,null,"MATERIALS, COATINGS AND COLOURS"]
[null,null,null,null,null,null,null,"Material","<Select option>",null,null,null,"NOTE"]
[]
[]
[null,null,null,null,null,null,null,"Length","Amount ","A","B"]
[]
[]
[]
[]
[]
["L = 150 - 4 000 mm"]

{"sheet":"3 Flashings c","index":4,"n_rows":55,"n_cols":13,"rows_kept":55,"cut":false,"hidden":true,"merged":[[5,0,5,12],[0,0,2,3],[0,4,0,6],[0,8,0,9],[0,11,0,13],[1,4,2,10],[1,11,2,13],[3,0,3,13],[4,0,4,2],[4,3,4,6],[4,7,4,8],[4,9,4,13],[6,0,6,3],[6,4,6,6],[6,7,6,13],[7,0,15,6],[7,8,7,9],[7,10,7,11],[7,12,7,13],[8,8,8,9],[8,10,8,11],[8,12,9,13],[9,8,9,9],[9,10,9,11],[16,0,16,6],[17,0,17,3],[17,4,17,6],[17,7,17,13],[18,0,26,6],[18,8,18,9],[18,10,18,11],[18,12,18,13],[19,8,19,9],[19,10,19,11],[19,12,20,13],[20,8,20,9],[20,10,20,11],[27,0,27,6],[28,0,28,3],[28,4,28,6],[28,7,28,13],[29,0,37,6],[29,8,29,9],[29,10,29,11],[29,12,29,13],[30,8,30,9],[30,10,30,11],[30,12,31,13],[31,8,31,9],[31,10,31,11],[38,0,38,6],[39,0,39,3],[39,4,39,6],[39,7,39,13],[40,0,48,6],[40,8,40,9],[40,10,40,11],[40,12,40,13],[41,8,41,9],[41,10,41,11],[41,12,42,13],[42,8,42,9],[42,10,42,11],[52,12,53,13],[53,8,53,9],[53,10,53,11],[60,0,60,6],[49,0,49,6],[50,0,50,3],[50,4,50,6],[50,7,50,13],[51,0,59,6],[51,8,51,9],[51,10,51,11],[51,12,51,13],[52,8,52,9],[52,10,52,11]]}
[null,null,null,null,"DESIGN PROFILE",null,null,"Select","product",null,null,"Date"]
[null,null,null,null,"Accessory specification - Flashings"]
[]
[]
["Ruukki SAP order no.",null,null,null,null,null,null,"PO no./ project"]
[]
["Vertical joint flashing",null,null,null,"CA1VJ17",null,null,"MATERIALS, COATINGS AND COLOURS"]
[null,null,null,null,null,null,null,"Material","Cor-Ten® 1.5 mm",null,null,null,"NOTE"]
[]
[]
[null,null,null,null,null,null,null,"Length","Amount "]
[]
[]
[]
[]
[]
["L = 100 - 3 050 mm"]
["External corner flashing",null,null,null,"CA1EC16",null,null,"MATERIALS, COATINGS AND COLOURS"]
[null,null,null,null,null,null,null,"Material","Cor-Ten® 1.5 mm",null,null,null,"NOTE"]
[]
[]
[null,null,null,null,null,null,null,"Length","Amount "]
[]
[]
[]
[]
[]
["L = 100 - 3 050 mm"]
["Internal corner flashing",null,null,null,"CA1IC14",null,null,"MATERIALS, COATINGS AND COLOURS"]
[null,null,null,null,null,null,null,"Material","Cor-Ten® 1.5 mm",null,null,null,"NOTE"]
[]
[]
[null,null,null,null,null,null,null,"Length","Amount "]
[]
[]
[]
[]
[]
["L = 100 - 3 050 mm"]
["Other",null,null,null,null,null,null,"MATERIALS, COATINGS AND COLOURS"]
[null,null,null,null,null,null,null,"Material","Select option",null,null,null,"NOTE"]
[]
[]
[null,null,null,null,null,null,null,"Length","Amount ","A","B"]
[]
[]
[]
[]
[]
[]
["Other",null,null,null,null,null,null,"MATERIALS, COATINGS AND COLOURS"]
[null,null,null,null,null,null,null,"Material","Select option",null,null,null,"NOTE"]
[]
[]
[null,null,null,null,null,null,null,"Length","Amount ","A","B","C","D"]

{"sheet":"4 External corner flashings","index":5,"n_rows":61,"n_cols":13,"rows_kept":61,"cut":false,"hidden":true,"merged":[[5,0,5,12],[0,0,2,3],[0,4,0,6],[0,8,0,9],[0,11,0,13],[1,4,2,10],[1,11,2,13],[3,0,3,13],[4,0,4,2],[4,3,4,6],[4,7,4,8],[4,9,4,13],[6,0,6,3],[6,4,6,6],[6,7,6,13],[7,0,15,6],[7,8,7,9],[7,10,7,11],[7,12,7,13],[8,8,8,9],[8,10,8,11],[8,12,9,13],[9,8,9,9],[9,10,9,11],[16,0,16,6],[17,0,17,3],[17,4,17,6],[17,7,17,13],[18,0,26,6],[18,8,18,9],[18,10,18,11],[18,12,18,13],[19,8,19,9],[19,10,19,11],[19,12,20,13],[20,8,20,9],[20,10,20,11],[27,0,27,6],[28,0,28,3],[28,4,28,6],[28,7,28,13],[29,0,37,6],[29,8,29,9],[29,10,29,11],[29,12,29,13],[30,8,30,9],[30,10,30,11],[30,12,31,13],[31,8,31,9],[31,10,31,11],[38,0,38,6],[39,0,39,3],[39,4,39,6],[39,7,39,13],[40,0,48,6],[40,8,40,9],[40,10,40,11],[40,12,40,13],[41,8,41,9],[41,10,41,11],[41,12,42,13],[42,8,42,9],[42,10,42,11],[52,12,53,13],[53,8,53,9],[53,10,53,11],[60,0,60,6],[49,0,49,6],[50,0,50,3],[50,4,50,6],[50,7,50,13],[51,0,59,6],[51,8,51,9],[51,10,51,11],[51,12,51,13],[52,8,52,9],[52,10,52,11]]}
[null,null,null,null,"DESIGN PROFILE",null,null,"Select","product",null,null,"Date"]
[null,null,null,null,"Accessory specification - External corner flashings"]
[]
[]
["Ruukki SAP order no.",null,null,null,null,null,null,"PO no./ project"]
[]
["External corner flashing",null,null,null,"CA1EC1X",null,null,"MATERIALS, COATINGS AND COLOURS"]
[null,null,null,null,null,null,null,"Material","<Select option>",null,null,null,"NOTE"]
[]
[]
[null,null,null,null,null,null,null,"Length","Amount ","A","B"]
[]
[]
[]
[]
[]
["L = 150 - 4 000 mm"]
["External corner flashing",null,null,null,"CA1EC4",null,null,"MATERIALS, COATINGS AND COLOURS"]
[null,null,null,null,null,null,null,"Material","<Select option>",null,null,null,"NOTE"]
[]
[]
[null,null,null,null,null,null,null,"Length","Amount "]
[]
[]
[]
[]
[]
["L = 150 - 4 000 mm"]
["External corner flashing",null,null,null,"CA1EC7X",null,null,"MATERIALS, COATINGS AND COLOURS"]
[null,null,null,null,null,null,null,"Material","<Select option>",null,null,null,"NOTE"]
[]
[]
[null,null,null,null,null,null,null,"Length","Amount ","A","B"]
[]
[]
[]
[]
[]
["L = 150 - 4 000 mm"]
["External corner flashing",null,null,null,"CA1EC12X",null,null,"MATERIALS, COATINGS AND COLOURS"]
[null,null,null,null,null,null,null,"Material","<Select option>",null,null,null,"NOTE"]
[]
[]
[null,null,null,null,null,null,null,"Length","Amount ","A","B"]
[]
[]
[]
[]
[]
["L = 150 - 4 000 mm"]
["Other",null,null,null,null,null,null,"MATERIALS, COATINGS AND COLOURS"]
[null,null,null,null,null,null,null,"Material","<Select option>",null,null,null,"NOTE"]
[]
[]
[null,null,null,null,null,null,null,"Length","Amount ","A","B","C","D"]
[]
[]
[]
[]
[]
["L = 150 - 4 000 mm"]

{"sheet":"5 Internal corner flashings","index":6,"n_rows":61,"n_cols":13,"rows_kept":61,"cut":false,"hidden":true,"merged":[[0,0,2,3],[0,4,0,6],[0,8,0,9],[0,11,0,13],[1,4,2,10],[1,11,2,13],[3,0,3,13],[4,0,4,2],[4,3,4,6],[4,7,4,8],[4,9,4,13],[6,0,6,3],[6,4,6,6],[6,7,6,13],[7,0,15,6],[7,8,7,9],[7,10,7,11],[7,12,7,13],[8,8,8,9],[8,10,8,11],[8,12,9,13],[9,8,9,9],[9,10,9,11],[16,0,16,6],[17,0,17,3],[17,4,17,6],[17,7,17,13],[18,0,26,6],[18,8,18,9],[18,10,18,11],[18,12,18,13],[19,8,19,9],[19,10,19,11],[19,12,20,13],[20,8,20,9],[20,10,20,11],[27,0,27,6],[28,0,28,3],[28,4,28,6],[28,7,28,13],[29,0,37,6],[29,8,29,9],[29,10,29,11],[29,12,29,13],[30,8,30,9],[30,10,30,11],[30,12,31,13],[31,8,31,9],[31,10,31,11],[38,0,38,6],[39,0,39,3],[39,4,39,6],[39,7,39,13],[40,8,40,9],[40,10,40,11],[40,12,40,13],[41,8,41,9],[41,10,41,11],[41,12,42,13],[42,8,42,9],[42,10,42,11],[52,12,53,13],[53,8,53,9],[53,10,53,11],[60,0,60,6],[5,0,5,13],[49,0,49,6],[50,0,50,3],[50,4,50,6],[50,7,50,13],[51,0,59,6],[51,8,51,9],[51,10,51,11],[51,12,51,13],[52,8,52,9],[52,10,52,11],[40,0,48,6]]}
[null,null,null,null,"DESIGN PROFILE",null,null,"Select","product",null,null,"Date"]
[null,null,null,null,"Accessory specification - Internal corner flashings"]
[]
[]
["Ruukki SAP order no.",null,null,null,null,null,null,"PO no./ project"]
[]
["Internal corner flashing",null,null,null,"CA1IC1X",null,null,"MATERIALS, COATINGS AND COLOURS"]
[null,null,null,null,null,null,null,"Material","<Select option>",null,null,null,"NOTE"]
[]
[]
[null,null,null,null,null,null,null,"Length","Amount ","A","B"]
[]
[]
[]
[]
[]
["L = 150 - 4 000 mm"]
["Internal corner flashing",null,null,null,"CA1IC2X",null,null,"MATERIALS, COATINGS AND COLOURS"]
[null,null,null,null,null,null,null,"Material","<Select option>",null,null,null,"NOTE"]
[]
[]
[null,null,null,null,null,null,null,"Length","Amount ","A","B","C"]
[]
[]
[]
[]
[]
["L = 150 - 4 000 mm"]
["Internal corner flashing",null,null,null,"CA1IC7X",null,null,"MATERIALS, COATINGS AND COLOURS"]
[null,null,null,null,null,null,null,"Material","<Select option>",null,null,null,"NOTE"]
[]
[]
[null,null,null,null,null,null,null,"Length","Amount ","A","B"]
[]
[]
[]
[]
[]
["L = 150 - 4 000 mm"]
["Other",null,null,null,null,null,null,"MATERIALS, COATINGS AND COLOURS"]
[null,null,null,null,null,null,null,"Material","<Select option>",null,null,null,"NOTE"]
[]
[]
[null,null,null,null,null,null,null,"Length","Amount ","A","B","C"]
[]
[]
[]
[]
[]
["L = 150 - 4 000 mm"]
["Other",null,null,null,null,null,null,"MATERIALS, COATINGS AND COLOURS"]
[null,null,null,null,null,null,null,"Material","<Select option>",null,null,null,"NOTE"]
[]
[]
[null,null,null,null,null,null,null,"Length","Amount ","A","B","C","D"]
[]
[]
[]
[]
[]
["L = 150 - 4 000 mm"]

{"sheet":"6 Other flashings","index":7,"n_rows":61,"n_cols":13,"rows_kept":61,"cut":false,"hidden":true,"merged":[[0,0,2,3],[0,4,0,6],[0,8,0,9],[0,11,0,13],[1,4,2,10],[1,11,2,13],[3,0,3,13],[4,0,4,2],[4,3,4,6],[4,7,4,8],[4,9,4,13],[6,0,6,3],[6,4,6,6],[6,7,6,13],[7,0,15,6],[7,8,7,9],[7,10,7,11],[7,12,7,13],[8,8,8,9],[8,10,8,11],[8,12,9,13],[9,8,9,9],[9,10,9,11],[16,0,16,6],[17,0,17,3],[17,4,17,6],[17,7,17,13],[18,0,26,6],[18,8,18,9],[18,10,18,11],[18,12,18,13],[19,8,19,9],[19,10,19,11],[19,12,20,13],[20,8,20,9],[20,10,20,11],[27,0,27,6],[28,0,28,3],[28,4,28,6],[28,7,28,13],[29,0,37,6],[29,8,29,9],[29,10,29,11],[29,12,29,13],[30,8,30,9],[30,10,30,11],[30,12,31,13],[31,8,31,9],[31,10,31,11],[38,0,38,6],[39,0,39,3],[39,4,39,6],[39,7,39,13],[40,8,40,9],[40,10,40,11],[40,12,40,13],[41,8,41,9],[41,10,41,11],[41,12,42,13],[42,8,42,9],[42,10,42,11],[52,12,53,13],[53,8,53,9],[53,10,53,11],[60,0,60,6],[5,0,5,13],[49,0,49,6],[50,0,50,3],[50,4,50,6],[50,7,50,13],[51,0,59,6],[51,8,51,9],[51,10,51,11],[51,12,51,13],[52,8,52,9],[52,10,52,11],[40,0,48,6]]}
[null,null,null,null,"DESIGN PROFILE",null,null,"Select","product",null,null,"Date"]
[null,null,null,null,"Accessory specification - Other flashings"]
[]
[]
["Ruukki SAP order no.",null,null,null,null,null,null,"PO no./ project"]
[]
["Other",null,null,null,null,null,null,"MATERIALS, COATINGS AND COLOURS"]
[null,null,null,null,null,null,null,"Material","Select option",null,null,null,"NOTE"]
[]
[]
[null,null,null,null,null,null,null,"Length","Amount ","A","B","C","D"]
[]
[]
[]
[]
[]
["L = 150 - 4 000 mm"]
["Other",null,null,null,null,null,null,"MATERIALS, COATINGS AND COLOURS"]
[null,null,null,null,null,null,null,"Material","Select option",null,null,null,"NOTE"]
[]
[]
[null,null,null,null,null,null,null,"Length","Amount ","A","B","C","D"]
[]
[]
[]
[]
[]
["L = 150 - 4 000 mm"]
["Other",null,null,null,null,null,null,"MATERIALS, COATINGS AND COLOURS"]
[null,null,null,null,null,null,null,"Material","Select option",null,null,null,"NOTE"]
[]
[]
[null,null,null,null,null,null,null,"Length","Amount ","A","B","C","D"]
[]
[]
[]
[]
[]
["L = 150 - 4 000 mm"]
["Other",null,null,null,null,null,null,"MATERIALS, COATINGS AND COLOURS"]
[null,null,null,null,null,null,null,"Material","Select option",null,null,null,"NOTE"]
[]
[]
[null,null,null,null,null,null,null,"Length","Amount ","A","B","C","NOTE"]
[]
[]
[]
[]
[]
["L = 150 - 4 000 mm"]
["Other",null,null,null,null,null,null,"MATERIALS, COATINGS AND COLOURS"]
[null,null,null,null,null,null,null,"Material","Select option",null,null,null,"NOTE"]
[]
[]
[null,null,null,null,null,null,null,"Length","Amount ","A","B","C","D"]
[]
[]
[]
[]
[]
["L = 150 - 4 000 mm"]

{"sheet":"7 Screws and other acc.","index":8,"n_rows":54,"n_cols":12,"rows_kept":54,"cut":false,"hidden":true,"merged":[[6,0,6,2],[6,3,6,6],[6,7,6,11],[1,11,2,11],[3,0,3,11],[5,0,5,11],[4,9,4,11],[4,0,4,2],[4,3,4,6],[4,7,4,8],[0,0,2,3],[0,4,0,6],[0,8,0,9],[1,4,2,10],[7,0,11,6],[12,0,12,4],[12,5,12,6],[8,9,8,11],[9,9,9,11],[10,9,10,11],[11,9,11,11],[12,9,12,11],[7,7,7,9],[7,10,7,11],[14,0,14,2],[14,3,14,6],[14,7,14,11],[15,0,19,6],[16,9,16,11],[17,9,17,11],[18,9,18,11],[19,9,19,11],[15,7,15,9],[15,10,15,11],[20,0,20,4],[20,5,20,6],[20,9,20,11],[22,0,22,2],[22,3,22,6],[22,7,22,11],[23,0,27,6],[24,9,24,11],[25,9,25,11],[26,9,26,11],[27,9,27,11],[23,7,23,9],[23,10,23,11],[28,0,28,4],[28,5,28,6],[28,9,28,11],[30,0,30,2],[30,3,30,6],[30,7,30,11],[13,0,13,11],[21,0,21,11],[29,0,29,11],[37,0,37,11],[38,0,38,6],[38,7,38,11],[36,0,36,4],[36,5,36,6],[36,9,36,11],[31,7,31,9],[31,0,35,6],[32,9,32,11],[33,9,33,11],[34,9,34,11],[35,9,35,11],[31,10,31,11],[39,7,39,11],[40,7,40,11],[41,7,41,11],[42,10,42,11],[49,0,49,6],[49,7,49,11],[39,0,39,1],[39,2,39,6],[40,2,40,6],[40,0,40,1],[41,0,47,6],[43,10,43,11],[44,10,44,11],[45,10,45,11],[46,10,46,11],[47,10,47,11],[50,7,50,11],[51,7,51,11],[52,7,52,11],[53,10,53,11],[48,0,48,11],[50,0,50,1],[50,2,50,6],[51,0,51,1],[51,2,51,6],[52,0,58,6],[54,10,54,11],[55,10,55,11],[56,10,56,11],[57,10,57,11],[58,10,58,11]]}
[null,null,null,null,"DESIGN PROFILE",null,null,"Select","product",null,null,"Date"]
[null,null,null,null,"Accessory specification - Screws and other acc."]
[]
[]
["Ruukki SAP order no.",null,null,null,null,null,null,"PO no./ project"]
[]
["Screw",null,null,"S3R48022D02A0B",null,null,null,"MATERIALS, COATINGS AND COLOURS"]
[null,null,null,null,null,null,null,"<Select option>",null,null,"_________"]
[null,null,null,null,null,null,null,"Amount ",null,"NOTE"]
[]
[]
[]
["Package size:",null,null,null,null,"Other material, thickness, colour"]
[]
["Screw",null,null,"S3T4826PA0E",null,null,null,"MATERIALS, COATINGS AND COLOURS"]
[null,null,null,null,null,null,null,"<Select option>",null,null,"_________"]
[null,null,null,null,null,null,null,"Amount ",null,"NOTE"]
[]
[]
[]
["Package size:",null,null,null,null,1000]
[]
["Screw",null,null,"S3H55022L02S4B",null,null,null,"MATERIALS, COATINGS AND COLOURS"]
[null,null,null,null,null,null,null,"<Select option>",null,null,"_________"]
[null,null,null,null,null,null,null,"Amount ",null,"NOTE"]
[]
[]
[]
["Package size:",null,null,null,null,"Other material, thickness, colour"]
[]
["Screw",null,null,"S3H48022D02S4C",null,null,null,"MATERIALS, COATINGS AND COLOURS"]
[null,null,null,null,null,null,null,"<Select option>",null,null,"_________"]
[null,null,null,null,null,null,null,"Amount ",null,"NOTE"]
[]
[]
[]
["Package size:",null,null,null,null,250]
[]
["Other accessory",null,null,null,null,null,null,"MATERIALS, COATINGS AND COLOURS"]
["Part nr",null,null,null,null,null,null,"Material thickness / material / coating / colour"]
["Additional info"]
[]
[null,null,null,null,null,null,null,"Amount ","Length","Price","NOTE"]
[]
[]
[]
[]
[]
["Other accessory"]
["Other accessory",null,null,null,null,null,null,"MATERIALS, COATINGS AND COLOURS"]
["Part nr",null,null,null,null,null,null,"Material thickness / material / coating / colour"]
["Additional info"]
[]
[null,null,null,null,null,null,null,"Amount ","Length","Price","NOTE"]

{"sheet":"8 Flat sheets","index":9,"n_rows":52,"n_cols":13,"rows_kept":52,"cut":false,"hidden":true,"merged":[[48,0,48,2],[48,3,48,6],[49,0,49,6],[50,0,50,6],[43,0,46,6],[11,0,11,2],[11,3,11,6],[12,0,12,2],[12,3,12,6],[13,0,13,6],[14,0,14,6],[23,0,23,2],[23,3,23,6],[24,0,24,2],[24,3,24,6],[25,0,25,6],[26,0,26,6],[35,0,35,2],[35,3,35,6],[36,0,36,2],[36,3,36,6],[37,0,37,6],[38,0,38,6],[47,0,47,2],[47,3,47,6],[52,0,52,6],[52,9,52,13],[17,0,17,13],[29,0,29,13],[41,0,41,13],[48,9,48,13],[49,9,49,13],[50,9,50,13],[51,0,51,2],[51,3,51,4],[51,9,51,13],[43,8,43,9],[43,10,43,11],[43,12,43,13],[44,8,44,9],[44,10,44,11],[44,12,45,13],[45,8,45,9],[45,10,45,11],[47,9,47,13],[39,0,39,2],[39,3,39,4],[39,9,39,13],[40,0,40,6],[40,9,40,13],[42,0,42,3],[42,4,42,6],[42,7,42,13],[32,10,32,11],[32,12,33,13],[33,8,33,9],[33,10,33,11],[35,9,35,13],[36,9,36,13],[37,9,37,13],[38,9,38,13],[31,0,34,6],[28,0,28,6],[28,9,28,13],[30,0,30,3],[30,4,30,6],[30,7,30,13],[31,8,31,9],[31,10,31,11],[31,12,31,13],[32,8,32,9],[24,9,24,13],[25,9,25,13],[26,9,26,13],[27,0,27,2],[27,3,27,4],[27,9,27,13],[19,8,19,9],[19,10,19,11],[19,12,19,13],[20,8,20,9],[20,10,20,11],[20,12,21,13],[21,8,21,9],[21,10,21,11],[23,9,23,13],[19,0,22,6],[13,9,13,13],[14,9,14,13],[15,9,15,13],[16,9,16,13],[18,0,18,3],[18,4,18,6],[18,7,18,13],[9,8,9,9],[9,10,9,11],[16,0,16,6],[15,3,15,4],[15,0,15,2],[11,9,11,13],[12,9,12,13],[7,0,10,6],[6,0,6,3],[6,4,6,6],[6,7,6,13],[7,8,7,9],[7,10,7,11],[7,12,7,13],[8,8,8,9],[8,10,8,11],[8,12,9,13],[3,0,3,13],[4,0,4,2],[4,3,4,6],[4,7,4,8],[4,9,4,13],[5,0,5,13],[0,0,2,3],[0,4,0,6],[0,8,0,9],[0,11,0,13],[1,4,2,10],[1,11,2,13]]}
[null,null,null,null,"DESIGN PROFILE",null,null,"Select","product",null,null,"Date"]
[null,null,null,null,"Accessory specification - Flat sheets"]
[]
[]
["Ruukki SAP order no.",null,null,null,null,null,null,"PO no./ project"]
[]
["Flat sheets",null,null,null,null,null,null,"MATERIALS, COATINGS AND COLOURS"]
[null,null,null,null,null,null,null,"Material","<Select option>",null,null,null,"NOTE"]
[]
[]
[null,null,null,null,null,null,null,"Length","Amount "]
["Width:",null,null," 1250 mm"]
["Typical lengths:",null,null," 2000, 3000, 4000 mm"]
[]
[]
[null,null,null,"Protective film",null,"No"]
[]
[]
["Flat sheets",null,null,null,null,null,null,"MATERIALS, COATINGS AND COLOURS"]
[null,null,null,null,null,null,null,"Material","<Select option>",null,null,null,"NOTE"]
[]
[]
[null,null,null,null,null,null,null,"Length","Amount "]
["Width:",null,null," 1250 mm"]
["Typical lengths:",null,null," 2000, 3000, 4000 mm"]
[]
[]
[null,null,null,"Protective film",null,"No"]
[]
[]
["Flat sheets",null,null,null,null,null,null,"MATERIALS, COATINGS AND COLOURS"]
[null,null,null,null,null,null,null,"Material","<Select option>",null,null,null,"NOTE"]
[]
[]
[null,null,null,null,null,null,null,"Length","Amount "]
["Width:",null,null," 1400 mm"]
["Typical lengths:",null,null," 2000, 3090, 4000 mm"]
[]
[]
[null,null,null,"Protective film",null,"No"]
[]
[]
["Flat sheets",null,null,null,null,null,null,"MATERIALS, COATINGS AND COLOURS"]
[null,null,null,null,null,null,null,"Material","<Select option>",null,null,null,"NOTE"]
[]
[]
[null,null,null,null,null,null,null,"Length","Amount "]
["Width:",null,null," 1400 mm"]
["Typical lengths:",null,null," 2000, 3090, 4000 mm"]
[]
[]
[null,null,null,"Protective film",null,"No"]

{"sheet":"8 Flat sheets c","index":10,"n_rows":49,"n_cols":13,"rows_kept":49,"cut":false,"hidden":true,"merged":[[51,9,51,13],[52,9,52,13],[51,0,52,6],[48,0,48,2],[48,3,48,6],[49,0,49,6],[45,8,45,9],[45,10,45,11],[47,9,47,13],[48,9,48,13],[49,9,49,13],[50,9,50,13],[43,0,46,6],[50,0,50,6],[47,0,47,2],[47,3,47,6],[42,7,42,13],[43,8,43,9],[43,10,43,11],[43,12,43,13],[44,8,44,9],[44,10,44,11],[44,12,45,13],[39,9,39,13],[40,9,40,13],[41,0,41,13],[39,0,40,6],[42,0,42,3],[42,4,42,6],[33,8,33,9],[33,10,33,11],[35,9,35,13],[36,9,36,13],[37,9,37,13],[38,9,38,13],[31,0,34,6],[35,0,35,2],[30,0,30,3],[30,4,30,6],[30,7,30,13],[31,8,31,9],[31,10,31,11],[31,12,31,13],[32,8,32,9],[32,10,32,11],[32,12,33,13],[35,3,35,6],[36,0,36,2],[36,3,36,6],[37,0,37,6],[38,0,38,6],[27,9,27,13],[28,9,28,13],[29,0,29,13],[27,0,28,6],[21,8,21,9],[21,10,21,11],[23,9,23,13],[24,9,24,13],[25,9,25,13],[26,9,26,13],[19,0,22,6],[24,0,24,2],[24,3,24,6],[23,0,23,2],[23,3,23,6],[25,0,25,6],[26,0,26,6],[18,7,18,13],[19,8,19,9],[19,10,19,11],[19,12,19,13],[20,8,20,9],[20,10,20,11],[20,12,21,13],[15,9,15,13],[16,9,16,13],[17,0,17,13],[15,0,16,6],[18,0,18,3],[18,4,18,6],[9,8,9,9],[9,10,9,11],[11,9,11,13],[12,9,12,13],[13,9,13,13],[14,9,14,13],[7,0,10,6],[6,0,6,3],[6,4,6,6],[6,7,6,13],[7,8,7,9],[7,10,7,11],[7,12,7,13],[8,8,8,9],[8,10,8,11],[8,12,9,13],[11,0,11,2],[11,3,11,6],[12,0,12,2],[12,3,12,6],[13,0,13,6],[14,0,14,6],[3,0,3,13],[4,0,4,2],[4,3,4,6],[4,7,4,8],[4,9,4,13],[5,0,5,13],[0,0,2,3],[0,4,0,6],[0,8,0,9],[0,11,0,13],[1,4,2,10],[1,11,2,13]]}
[null,null,null,null,"DESIGN PROFILE",null,null,"Select","product",null,null,"Date"]
[null,null,null,null,"Accessory specification - Flat sheets"]
[]
[]
["Ruukki SAP order no.",null,null,null,null,null,null,"PO no./ project"]
[]
["Flat sheets",null,null,null,null,null,null,"MATERIALS, COATINGS AND COLOURS"]
[null,null,null,null,null,null,null,"Material","Cor-Ten 0.7 mm",null,null,null,"NOTE"]
[]
[]
[null,null,null,null,null,null,null,"Length","Amount "]
["Width:",null,null," 1250 mm"]
["Typical lengths:",null,null," 2000, 3000, 4000 mm"]
[]
[]
[]
[]
[]
["Flat sheets",null,null,null,null,null,null,"MATERIALS, COATINGS AND COLOURS"]
[null,null,null,null,null,null,null,"Material","Cor-Ten 1.5 mm",null,null,null,"NOTE"]
[]
[]
[null,null,null,null,null,null,null,"Length","Amount "]
["Width:",null,null," 1400 mm"]
["Typical lengths:",null,null," 2000, 3090, 4000 mm"]
[]
[]
[]
[]
[]
["Flat sheets",null,null,null,null,null,null,"MATERIALS, COATINGS AND COLOURS"]
[null,null,null,null,null,null,null,"Material","<Select option>",null,null,null,"NOTE"]
[]
[]
[null,null,null,null,null,null,null,"Length","Amount "]
["Width:",null,null," 1250 mm"]
["Typical lengths:",null,null," 2000, 3000, 4000 mm"]
[]
[]
[]
[]
[]
["Flat sheets",null,null,null,null,null,null,"MATERIALS, COATINGS AND COLOURS"]
[null,null,null,null,null,null,null,"Material","<Select option>",null,null,null,"NOTE"]
[]
[]
[null,null,null,null,null,null,null,"Length","Amount "]
["Width:",null,null," 1400 mm"]
["Typical lengths:",null,null," 2000, 3090, 4000 mm"]

{"sheet":"Translation","index":11,"n_rows":165,"n_cols":4,"rows_kept":165,"cut":false,"hidden":true,"merged":[]}
["ID","English","Suomi","Polska"]
[2,"ORDER FORM","TILAUSKAAVAKE","FORMULARZ ZAMÓWIENIA"]
[3,"Language","Kieli","Jezyk"]
[4,"Ruukki SAP order no.","Ruukin SAP-tilausnumero","Ruukki SAP nr zamówienia"]
[5,"Date","Päivämäärä","Data"]
[6,"Send to:","Vastaanottaja","Wysłać do"]
[7,"Italic underlined = mandatory information","Kursivoitu alleviivattu = pakollinen tieto","kursywa podkreślona = informacje obowiązkowe"]
[8,"BUYER","ASIAKAS","KUPUJĄCY"]
[9,"SHIP-TO PARTY (DELIVERY ADDRESS)","TOIMITUSOSOITE (SHIP-TO PARTY)","ADRES DOSTAWY"]
[10,"SOLD-TO PARTY (BUYER)","TILAUSASIAKAS (SOLD-TO PARTY)","KUPUJĄCY"]
[11,"BILL-TO PARTY (INVOICING CUSTOMER)","LASKUTUSASIAKAS (BILL-TO PARTY)","DANE DO FAKTURY"]
[12,"Customer no.","Asiakasnumero","Nr klienta"]
[13,"Name","Nimi","Nazwa"]
[14,"Address","Osoite","Adres"]
[15,"Person","Henkilö","Nazwisko"]
[16,"Tel.","Puh.nro.","Tel."]
[17,"email","email","email"]
[18,"ORDER INFORMATION","TILAUSTIEDOT","INFORMACJE O ZAMÓWIENIU"]
[19,"Short project name (3-10 characters)","Projektin nimi","Krótka nazwa projektu (3-10 znaków)"]
[20,"PO no./ project","Tilausnumero/ Projekti","Nr i nazwa/ projekt"]
[21,"Wholesaler order nr","Tukkuliikkeen tilausnumero","Nr zamówienia klienta"]
[22,"Ruukki Sales ja CST person","Ruukin myyjä ja CST yhteyshenkilö","Handlowiec i pracownik obsługi klienta CST"]
[23,"Billing fee","Laskutuspalkkio","Opłata rozliczeniowa"]
[24,"Extra order","Lisätilaus","Dodatkowe zamówienie"]
[25,"Original Ruukki SAP order no.","Alkuperäinen Ruukin SAP-tilausnumero","Originalny numer zamówienia Ruukki SAP."]
[26,"Project-specific material ordered","Projektikohtainen raaka-aine tilattu","Zamówienie specjalne materiału"]
[27,"External corner flashings","Ulkonurkkalistat","Obróbki zewnętrz. narożnika"]
[28,"Additional info","Lisätietoja","Dodatkowe informacje"]
[29,"TERMS","EHDOT","WARUNKI"]
[30,"Delivery term","Toimitusehto","Warunki dostawy"]
[31,"Place:","Paikka:","Miejsce:"]
[32,"Extra charges","Lisämaksut","Dodatkowe opłaty"]
[33,"Insurance","Vakuutus","Ubezpieczenie"]
[34,"Package","Pakkaus","Pakowanie"]
[35,"Price","Hinta","Cena"]
[36,"Freight","Rahti","Transport"]
[37,"Other","Muu","Inne"]
[38,"ATTACHED PRIMO AND ACCESSORY SPECIFICATIONS","LIITTEENÄ PRIMO KASETTI-JA TARVIKE-ERITTELYT","ZAŁĄCZONE SPECYFIKACJE KASETONÓW I AKCESORIÓW"]
[39,"Always attach separate product-specific drawing from ruukki.com when required.","Vaadittaessa liitä aina erillinen tuotekohtainen detaljipiirustus ruukki.fi-sivulta.","W razie potrzeby zawsze załączyć osobny rysunek określonego produktu z ruukki.pl"]
[40,"Sepate product-specific drawings attached","Erillisiä tuotekohtaisia detaljipiirustuksia liitteenä","Załączono osobne rysunki produktów"]
[41,"pcs","kpl.","szt."]
[42,"NOTE","HUOM.","UWAGI"]
[43,"No","Ei","Nie"]
[44,"Original Ruukki order nr.","Alkuperäinen Ruukin tilausnumero","Originalny numer zamówienia Ruukki"]
[45,"Amount (pcs)","Määrä (kpl)","Ilość (szt.)"]
[46,"Amount (m²)","Määrä (m²)","Ilość (m²)"]
[47,"Order date","Tilauspäivämäärä","Data zamówienia"]
[48,"Fitting order to follow","Lisätilaus tulossa","Dodatkowe zamówienie"]
[49,"Estimated date","Arviotu päivämäärä","Szacowana data"]
[50,"Yes","Kyllä","Tak"]
[51,"FCA (Pick-up)","FCA (Nouto)","FCA (odbiór własny)"]
[52,"DAP (Factory transport)","DAP (Tehtaan kuljetus)","DAP (transport z wytwórni na miejsce)"]
[53,"Horizontal brick pattern","Vaakasuuntainen tiilikuvio","Poziomy wzór cegły"]
[54,"Vertical brick pattern","Pystysuuntainen tiilikuvio","Pionowy wzór cegły"]
[55,"Make sure to send panel fastening hole pattern as a separate drawing","Muista lähettää kiinnitysreikäohje erillisenä piirustuksena","Pamiętaj, aby wysłać wzór otworowania do mocowania kasetonu jako osobny rysunek"]
[56,"Standard hole pattern","Vakio kiinnitysreikäjako","Standardowe otworowanie"]
[57,"Custom hole pattern","Tilauskohtainen kiinnitysreikäjako","Niestandardowe otworowanie"]
[58,"Fastening holes","Kiinnitysreiät","Otwory mocujące"]
[59,"Add into NOTE box c:d. Perforation options on the right","Lisää HUOM.-sarakkeeseen mitat c;d. Perforointivaihtoehdot kaavakkeen oikealla puolella","Dodać w uwagach wymiary c,d. Opcje perforacji można zobaczyć po prawej stronie"]
[60,"Make sure to send art peforation as a separate drawing","Muista lähettää piirustukset kuvioperforoinnista erillisessä piirustuksessa","Pamiętaj, aby wysłać perforację artystyczną jako oddzielny rysunek"]
[61,"Perforation options","Rei'itys vaihtoehdot","Opcje perforacji"]
[62,"Full perforation","Symmetrinen perforointi","Pełna perforacja"]
[63,"Art perforation","Kuviorei'itys","Perforacja artystyczna"]
[64,"Profile specification","Määräerittely","Specyfikacja profili"]
[65]
[66,"Internal corner flashings","Sisänurkkalistat","Obróbki wewnętrzn. narożnika"]
[67,"Vertical joint flashings","Pystysaumalistat","Obróbki stykowe pionowe"]
[68,"Support studs","Koolausrangat","Montażowe"]
[69]
[70,"Flashings","Listat","Obróbki"]
[71,"Special flashings","Erikoislistat","Obróbki specjalne"]
[72,"Screws and other acc.","Ruuvit, muut tarvikkeet","Wkręty i inne akcesoria"]
[73,"Flat sheets","Arkit","Blacha płaska"]
[74,"Fitting order","Lisätilaus","Zamówienie uzupełniające"]
[75,"Booking","Varaus","Reserwacja"]
[76,"Select option","Valitse vaihto-ehto","Wybierz opcję"]
[77,"Price","Hinta","Cena"]
[78,"Brick pattern","Tiilikuvio","Wzór w cegłę"]
[79,"Material","Materiaalit","Materiał"]
[80,"Colour","Värit","Kolor"]
[81,"Mixed brick pattern","Sekalainen tiilikuvio","Mieszany wzór cegły"]
[82,"No perforation","Ei rei'itystä","Bez perforacji"]
[83,"ITEM","RIVI","POZ."]
[84,"Dv right","Dv oikea","Dv prawej"]
[85,"Dv left","Dv vasen","Dv levej"]
[86,"Dh up","Dh ylä","Dh górny"]
[87,"Dh down","Dh ala","Dh niższy"]
[88,"Part ID","Osa ID","Część ID"]
[89,"Sizes","Kokorajat","Rozmiary"]
[90,"For further info please refer to product size table","Lisätietoa tarvittaessa, viittaa tuotteen mittataulukkoon","Więcej informacji można znaleźć w tabeli rozmiarów produktu"]
[91,"Amount ","Määrä","Ilość"]
[92,"Order form cover page","Tilauskaavakkeen pääsivu","Formularz Zamowienia - okladka"]
[93,"Horizontal panel max","Vaakasuuntaisen kasetin maksimimitta","Maksymalny wymiar panela w poziomie"]
[94,"Vertical panel max","Pystysuuntaisen kasetin maksimitta","Maksymalny wymiar panela w pionie"]
[95,"Steel","Teräs","Stal"]
[96,"Standard","Standard","Standard"]
[97,"Matt","Matta","Matowy"]
[98,"Metallic","Metallisävy","Metaliczny"]
[99,"Epoxy+PP","Epoksi+pulveri","Epoksy+PP"]
[100,"Other material, thickness, colour","Muu materiaali, ainevahvuus, väri","Inny materiał, grubość, kolor"]
[101,"Thickness","Ainevahvuus","Grubość"]
[102,"Zinc","Kuumasinkitty","Ocynk"]
[103,"Specify colour:","Määritä väri:","Określ kolor:"]
[104,"Length","Pituus","Długość"]
[105,"MATERIALS, COATINGS AND COLOURS","MATERIAALIT, PINNOITTEET JA VÄRIT","MATERIAŁ, POWŁOKI I KOLORY"]
[106,"Screws and other acc.","Ruuvit, muut tarvikkeet","Wkręty i inne akcesoria"]
[107,"Package size:","Pakkauskoko:","Wielkość paczki:"]
[108,"Other accessory","Muut tarvikkeet","Inne akcesoria"]
[109,"Material thickness / material / coating / colour","Materiaalin vahvuus / materiaali / pinnoite / väri","Grubość materiału / materiał / powłoka / kolor"]
[110,"Part nr","Osa nro","Część nr"]
[111,"Bright","Kirkas","Jasny"]
[112,"Internal corner flashing","Sisänurkkalista","Obróbka wewnętrznego narożnika"]
[113,"Cover flashing","Suojalista","Obróbki maskujące"]
[114,"External corner flashing","Ulkonurkkalista","Obróbka zewnętrznego narożnika"]
[115,"Add the dimensions marked with letters into the notes","Lisää merkinnät kirjaimilla mitat","Dodaj wymiary oznaczone literami w uwagach"]
[116,"Flat sheet","Arkki","Blacha płaska"]
[117,"Typical lengths:","Tyypillinen pituus:","Typowa długość:"]
[118,"Width:","Leveys:","Szerokość:"]
[119,"Other flashings","Muut vakiolistat","Inne obróbki"]
[120,"st. fillet","aloituslista","prof. startowy"]
[121,"Support brackets","Koolaurangan liitoskappale","Wsporniky"]
[122,"Support bracket","Koolausrangan liitoskappale","Wspornik"]
[123,"Starting fillet","Aloituslista","Profil startowy"]
[124,"Steel stainless","Ruostumaton teräs","Stal nierdzewna"]
[125,"bracket","liitoskappale","wspornik"]
[126,"Coating","Pinnoite","Powłoka"]
[127,"Main order","Päätilaus","Zamówienie główne"]
[128,"No brick pattern","Ei tiilikuviota","Bez wzoru w cegłę"]
[129,"Accessory specification","Tarvike-erittelyt","Specyfikacja akcesoriów"]
[130,"Aluminium","Alumiini","Aluminium"]
[131,"Different colour or material","Eri väri tai materiaali","Inny kolor lub materiał"]
[132,"Same as panel","Sama kuin paneeli","Taki sam jak panel"]
[133,"Other flashing","Muut tarvikkeet","Obróbki inne"]
[134,"Show","Näytä","Pokaż"]
[135,"Hide","Piilota","Ukryj"]
[136,"Add sheet","Lisää sivu","Dodaj arkusz"]
[137,"Not available","Ei saatavilla","Nie dostępne"]
[138,"Rivet","Niitti","Nit"]
[139,"Screw","Ruuvit","Wkręt"]
[140,"Joint colour","Sauman väri","Kolor fugi"]
[141,"Different colour","Eri väri","Inny kolor"]
[142,"Material not selected for basic panel!","Raaka-ainetta ei ole valittu peruskasetille","Materiał nie wybrany dla panelu podstawowego!"]
[143,"Fastening type","Kiinnikkeen tyyppi","Sposób mocowania"]
[144,"Concealed fixing","Piilokiinnitys","Ukryte mocowanie"]
[145,"Replaceable panel","Vaihdettava kasetti","Panel wymienny"]
[146,"Select","Valitse","Wybierz"]
[147,"Special","Erikois","Specjalny"]
[148,"Select sheet","Valitse arkki","Wybierz arkusz"]
[149,"Support brackets","Kiinnityspala","Wspornik"]
[150,"No fastening holes","Ei kiinnitysreikiä","Bez otworów"]
[151,"Support stud","Kiinnitysorsi","Ruszt"]
[152,"Add 5 rows","Lisää 5 riviä","Dodaj 5 wierszy"]
[153,"Delete 5 rows","Poista 5 riviä","Usuń 5 wierszy"]
[154,"Vertical joint flashing","Pystysaumalista","Obróbka stykowe pionowe"]
[155,"Product not selected!","Tuotetta ei valittu!","Produkt nie został wybrany"]
[156,"Choose product to continue!","Valitse tuote jatkaaksesi","Wybierz produkt, aby kontynuować"]
[157,"Natural","Luonnon","Naturalny"]
[158,"Effective width","Hyötyleveys","Szerokość efektywna"]
[159,"Depth","Syyvys","Głębokość"]
[160,"Total","Kokonais","Totalny"]
[161,"Protective film","Sujokalvo","Foila ochronna"]
[162,"product","tuote","produkt"]
[163,"Sheet width","Arkki leveys","Blacha szerokość"]
[164,"Gloss","Kiilto","Glosa"]
[165,"Export macro-free version","Vie makrovapaa versio","Eksportuj wersję bez makr"]

{"sheet":"Data","index":12,"n_rows":38,"n_cols":17,"rows_kept":38,"cut":false,"hidden":true,"merged":[]}
["ProdSel","ProdName","corten","rheinzink","fin","Width","Width2","Depth","Length","Language","YesNo","TransOpt","Booking","ScrewCol",null,"CoatingSt","Colour"]
["Select","product",null,null,1,null,null,null,null,"English","No","Other","Main order","Select option",null,"Select option","Select option"]
["S10","Venice",1,1,1,998,798,10,"500 - 7 000","Suomi","Yes","FCA (Pick-up)","Fitting order","Bright",null,"HIARC","RR20"]
["S18","Tokyo",1,1,1,1100,821,18,"600 - 6 000","Polska",null,"DAP (Factory transport)","Booking","Other",null,"Epoxy+PP","RR21"]
["S34","Rome",1,1,1,898,659,34,"500 - 7 000",null,null,null,null,null,null,null,"RR23"]
["SS34","Rome",1,null,1,898,"n/a",34,"500 - 7 000",null,null,null,null,null,null,"CoatingAl","RR40 Matt"]
["S55","Paris",1,null,1,885,"n/a",55,"500 - 7 000",null,null,"Perforation",null,"StudMatPol",null,"Select option","RR41 Matt"]
[null,null,null,null,null,null,null,null,null,null,null,"No perforation",null,"Select option",null,"PVDF","RR45 Matt"]
[null,null,null,null,null,null,null,null,null,null,null,"Full perforation 10%",null,"Steel 1.2 mm",null,"PP","RR40 Metallic"]
["Custom",null,null,null,null,null,null,null,null,null,null,"Full perforation 15%",null,"Aluminium 1.5 mm",null,"Natural","RR41 Metallic"]
["▲▲▲",null,null,null,null,null,null,null,null,null,null,"Full perforation 30%",null,"Other",null,null,"RR42 Metallic"]
[null,null,"Lang",null,null,null,null,null,null,"Material",null,"Full perforation 40%",null,"Zinc 1.5 mm",null,null,"RR43 Metallic"]
[null,null,2,null,null,null,"Gloss",null,null,"Select option",null,null,null,null,null,null,"Other"]
[null,null,3,null,null,null,"Standard",null,null,"Steel 0.6 mm",null,null,null,"Material thick"]
[null,null,null,null,null,null,"Matt",null,null,"Aluminium 0.7 mm",null,"StudMat",null,"Select option",null,"FlashMat"]
[null,null,null,null,null,null,null,null,null,"Other",null,"Select option",null,"Steel 1.2 mm",null,"Select option"]
[null,null,null,null,null,null,null,null,null,null,null,"Steel 1.2 mm",null,"Aluminium 1.5 mm",null,"Steel 0.6 mm"]
[null,null,null,null,null,null,null,null,null,"Material2",null,"Aluminium 1.5 mm",null,"Other",null,"Aluminium 0.7 mm"]
[null,null,null,null,null,null,null,null,null,"Select option",null,"Other",null,null,null,"Other"]
[null,null,null,null,null,null,null,null,null,"Steel 0.6 mm"]
[null,null,null,null,null,null,null,null,null,"Aluminium 0.7 mm",null,"MaterialCorten",null,"StudMatCor",null,"FlashMatCor"]
[null,null,null,null,null,null,null,null,null,"Rheinzink 0.7 mm",null,"Select option",null,"Select option",null,"Select option"]
[null,null,null,null,null,null,null,null,null,"Other",null,"Steel 0.6 mm",null,"Steel 1.2 mm",null,"Steel 0.6 mm"]
[null,null,null,null,null,null,null,null,null,null,null,"Aluminium 0.7 mm",null,"Aluminium 1.5 mm",null,"Aluminium 0.7 mm"]
[null,null,null,null,null,null,null,null,null,"Material5",null,"Cor-Ten® 1.5 mm",null,"Cor-Ten® 1.5 mm",null,"Cor-Ten® 1.5 mm"]
[null,null,null,null,null,null,null,null,null,"Select option",null,"Other",null,"Other",null,"Other"]
[null,null,null,null,null,null,null,null,null,"Steel 0.6 mm"]
[null,null,null,null,null,null,null,null,null,"Cor-Ten® 0.7 mm"]
[null,null,null,null,null,null,null,null,null,"Aluminium 0.7 mm"]
[null,null,null,null,null,null,null,null,null,"Other"]
[]
[null,null,null,null,null,null,null,null,null,"Material6"]
[null,null,null,null,null,null,null,null,null,"Select option"]
[null,null,null,null,null,null,null,null,null,"Steel 0.6 mm"]
[null,null,null,null,null,null,null,null,null,"Cor-Ten® 0.7 mm"]
[null,null,null,null,null,null,null,null,null,"Aluminium 0.7 mm"]
[null,null,null,null,null,null,null,null,null,"Rheinzink 0.7 mm"]
[null,null,null,null,null,null,null,null,null,"Other"]